[Event "Early-Titled-Tuesday-Blitz-August-29-2023"]
[Site "Chess.com"]
[Date "2023.08.29"]
[Round "6"]
[White "Sunny_Star"]
[Black "wild3000"]
[Result "0-1"]
[WhiteElo "2082"]
[BlackElo "2344"]
[TimeControl "180+1"]
[EndTime "9:04:54 PDT"]
[Termination "wild3000 won on time"]

1. f4 {[%clk 0:02:26.8]} 1... a6 {[%clk 0:02:56]} 2. Nf3 {[%clk 0:02:25.6]} 2...
d5 {[%clk 0:02:55.5]} 3. g3 {[%clk 0:02:25]} 3... h5 {[%clk 0:02:54.9]} 4. Bg2
{[%clk 0:02:24.3]} 4... e6 {[%clk 0:02:54.1]} 5. d3 {[%clk 0:02:12.8]} 5... Be7
{[%clk 0:02:53.3]} 6. Nbd2 {[%clk 0:02:11.6]} 6... h4 {[%clk 0:02:53.1]} 7. O-O
{[%clk 0:02:05.2]} 7... hxg3 {[%clk 0:02:52]} 8. hxg3 {[%clk 0:02:04.3]} 8...
Nf6 {[%clk 0:02:36.7]} 9. e3 {[%clk 0:02:03.5]} 9... c5 {[%clk 0:02:32.2]} 10.
c3 {[%clk 0:01:46.5]} 10... Nc6 {[%clk 0:02:31.8]} 11. b3 {[%clk 0:01:45.4]}
11... b5 {[%clk 0:02:31.4]} 12. Bb2 {[%clk 0:01:45.3]} 12... Bb7 {[%clk
0:02:31.8]} 13. c4 {[%clk 0:01:43.3]} 13... dxc4 {[%clk 0:02:30.5]} 14. dxc4
{[%clk 0:01:43]} 14... b4 {[%clk 0:02:30.5]} 15. Qe2 {[%clk 0:01:40.4]} 15...
Qc7 {[%clk 0:02:27.7]} 16. Rfd1 {[%clk 0:01:37.4]} 16... O-O-O {[%clk 0:02:24]}
17. Ne5 {[%clk 0:01:34.7]} 17... Bd6 {[%clk 0:02:16.7]} 18. Nxc6 {[%clk
0:01:27]} 18... Bxc6 {[%clk 0:02:16.9]} 19. e4 {[%clk 0:01:25.8]} 19... e5
{[%clk 0:02:12.4]} 20. f5 {[%clk 0:01:11.8]} 20... Be7 {[%clk 0:02:12]} 21. a3
{[%clk 0:01:05.8]} 21... a5 {[%clk 0:02:08.5]} 22. axb4 {[%clk 0:01:04.3]} 22...
cxb4 {[%clk 0:02:04.5]} 23. Nf3 {[%clk 0:00:35.5]} 23... Bc5+ {[%clk 0:01:39.8]}
24. Kf1 {[%clk 0:00:34.8]} 24... Ng4 {[%clk 0:01:39]} 25. Bc1 {[%clk 0:00:05.1]}
25... Rxd1+ {[%clk 0:01:33.7]} 26. Qxd1 {[%clk 0:00:04.6]} 26... Bxe4 {[%clk
0:01:32.6]} 0-1

[Event "Early-Titled-Tuesday-Blitz-August-29-2023"]
[Site "Chess.com"]
[Date "2023.08.29"]
[Round "6"]
[White "BatboldNyamsuren0919"]
[Black "ChEsper99"]
[Result "0-1"]
[WhiteElo "2377"]
[BlackElo "2141"]
[TimeControl "180+1"]
[EndTime "9:05:03 PDT"]
[Termination "ChEsper99 won on time"]

1. Nf3 {[%clk 0:03:00.9]} 1... d5 {[%clk 0:02:52.5]} 2. g3 {[%clk 0:03:01.8]}
2... g6 {[%clk 0:02:50.8]} 3. d4 {[%clk 0:03:01.2]} 3... Bg7 {[%clk 0:02:51]} 4.
c4 {[%clk 0:03:00.8]} 4... c6 {[%clk 0:02:51.4]} 5. Nc3 {[%clk 0:02:59.2]} 5...
Nf6 {[%clk 0:02:47.9]} 6. cxd5 {[%clk 0:02:59.3]} 6... cxd5 {[%clk 0:02:47.6]}
7. Bg2 {[%clk 0:03:00.2]} 7... O-O {[%clk 0:02:47.7]} 8. O-O {[%clk 0:02:59.9]}
8... Nc6 {[%clk 0:02:47.8]} 9. Bg5 {[%clk 0:02:57.1]} 9... Bf5 {[%clk
0:02:44.5]} 10. Ne5 {[%clk 0:02:56.4]} 10... Rc8 {[%clk 0:02:35.3]} 11. Bxf6
{[%clk 0:02:54.5]} 11... Bxf6 {[%clk 0:02:36.2]} 12. Nxd5 {[%clk 0:02:52.2]}
12... Bxe5 {[%clk 0:02:07.8]} 13. dxe5 {[%clk 0:02:53.1]} 13... Nxe5 {[%clk
0:02:08.5]} 14. e4 {[%clk 0:02:53.1]} 14... Be6 {[%clk 0:02:02.6]} 15. Qb3
{[%clk 0:02:51.2]} 15... Bxd5 {[%clk 0:01:54.7]} 16. exd5 {[%clk 0:02:50.4]}
16... b6 {[%clk 0:01:32.3]} 17. Rfd1 {[%clk 0:02:43.6]} 17... Qd6 {[%clk
0:01:32.4]} 18. Rac1 {[%clk 0:02:32.4]} 18... Rc7 {[%clk 0:01:30.5]} 19. Rxc7
{[%clk 0:02:30.9]} 19... Qxc7 {[%clk 0:01:31.4]} 20. f4 {[%clk 0:02:29.6]} 20...
Qc5+ {[%clk 0:01:24.8]} 21. Kh1 {[%clk 0:02:19.1]} 21... Ng4 {[%clk 0:01:25.1]}
22. Rf1 {[%clk 0:01:57.6]} 22... Nf2+ {[%clk 0:01:16.5]} 23. Rxf2 {[%clk
0:01:58.5]} 23... Qxf2 {[%clk 0:01:17.1]} 24. h3 {[%clk 0:01:59.4]} 24... Rc8
{[%clk 0:01:15.2]} 25. Qd3 {[%clk 0:01:45.4]} 25... Rc1+ {[%clk 0:01:09.9]} 0-1

[Event "Early-Titled-Tuesday-Blitz-August-29-2023"]
[Site "Chess.com"]
[Date "2023.08.29"]
[Round "6"]
[White "nihalsarin"]
[Black "sergoy"]
[Result "1-0"]
[WhiteElo "3144"]
[BlackElo "2948"]
[TimeControl "180+1"]
[EndTime "9:05:04 PDT"]
[Termination "nihalsarin won by resignation"]

1. Nf3 {[%clk 0:03:00.9]} 1... d5 {[%clk 0:02:59.2]} 2. b3 {[%clk 0:03:01.8]}
2... Bg4 {[%clk 0:02:58.2]} 3. e3 {[%clk 0:03:01.8]} 3... Nd7 {[%clk 0:02:58.2]}
4. Bb2 {[%clk 0:03:02.4]} 4... Ngf6 {[%clk 0:02:58.5]} 5. h3 {[%clk 0:03:03]}
5... Bh5 {[%clk 0:02:58.5]} 6. c4 {[%clk 0:03:03.7]} 6... c6 {[%clk 0:02:57.7]}
7. cxd5 {[%clk 0:03:03.6]} 7... cxd5 {[%clk 0:02:56.8]} 8. Nc3 {[%clk
0:03:04.4]} 8... e6 {[%clk 0:02:56.6]} 9. Be2 {[%clk 0:03:05.2]} 9... a6 {[%clk
0:02:55.8]} 10. O-O {[%clk 0:03:05.7]} 10... Bd6 {[%clk 0:02:56.1]} 11. Rc1
{[%clk 0:03:06]} 11... O-O {[%clk 0:02:56.1]} 12. Nd4 {[%clk 0:03:06.6]} 12...
Bg6 {[%clk 0:02:55.4]} 13. f4 {[%clk 0:03:06.5]} 13... Nc5 {[%clk 0:02:36.2]}
14. f5 {[%clk 0:03:06.7]} 14... exf5 {[%clk 0:02:28.1]} 15. Nxf5 {[%clk
0:03:07.6]} 15... Rc8 {[%clk 0:01:34.8]} 16. Nxg7 {[%clk 0:02:56.9]} 16... d4
{[%clk 0:01:30.6]} 17. exd4 {[%clk 0:02:51.2]} 17... Bb8 {[%clk 0:01:29.7]} 18.
Nf5 {[%clk 0:02:40.4]} 18... Qc7 {[%clk 0:01:19.3]} 19. Rf3 {[%clk 0:01:30.4]}
19... Bxf5 {[%clk 0:01:16]} 20. dxc5 {[%clk 0:01:22.8]} 20... Qh2+ {[%clk
0:01:01.7]} 21. Kf2 {[%clk 0:01:21.4]} 21... Ne4+ {[%clk 0:00:52.9]} 22. Nxe4
{[%clk 0:01:20.3]} 22... Bxe4 {[%clk 0:00:53.8]} 23. Bd3 {[%clk 0:01:17.8]}
23... Bc6 {[%clk 0:00:40.3]} 24. Qc2 {[%clk 0:01:04.7]} 24... Rfd8 {[%clk
0:00:28.4]} 25. Bxh7+ {[%clk 0:01:00.1]} 25... Kf8 {[%clk 0:00:28.7]} 26. Rxf7+
{[%clk 0:00:55.3]} 1-0

[Event "Early-Titled-Tuesday-Blitz-August-29-2023"]
[Site "Chess.com"]
[Date "2023.08.29"]
[Round "6"]
[White "CarlosjPineror"]
[Black "ChessArchitect64"]
[Result "0-1"]
[WhiteElo "2403"]
[BlackElo "2245"]
[TimeControl "180+1"]
[EndTime "9:05:04 PDT"]
[Termination "ChessArchitect64 won by resignation"]

1. e4 {[%clk 0:03:00.9]} 1... c5 {[%clk 0:02:58.5]} 2. Nf3 {[%clk 0:03:01.1]}
2... e6 {[%clk 0:02:56.9]} 3. d4 {[%clk 0:03:01.2]} 3... cxd4 {[%clk 0:02:53.8]}
4. Nxd4 {[%clk 0:03:02.1]} 4... Nc6 {[%clk 0:02:52.3]} 5. Nb5 {[%clk 0:03:01.5]}
5... d6 {[%clk 0:02:50.7]} 6. c4 {[%clk 0:03:01.3]} 6... Nf6 {[%clk 0:02:30]} 7.
N1c3 {[%clk 0:03:00.4]} 7... a6 {[%clk 0:02:27.8]} 8. Na3 {[%clk 0:03:00]} 8...
Be7 {[%clk 0:02:27.4]} 9. Be2 {[%clk 0:02:56.2]} 9... O-O {[%clk 0:02:26.2]} 10.
O-O {[%clk 0:02:53.3]} 10... Bd7 {[%clk 0:02:20.2]} 11. Be3 {[%clk 0:02:49.8]}
11... Rc8 {[%clk 0:02:18.5]} 12. Rc1 {[%clk 0:02:45.2]} 12... Qa5 {[%clk
0:02:16.8]} 13. Nc2 {[%clk 0:02:36]} 13... Nb4 {[%clk 0:01:59]} 14. a3 {[%clk
0:01:38.1]} 14... Nxc2 {[%clk 0:01:57.2]} 15. Rxc2 {[%clk 0:01:39]} 15... b5
{[%clk 0:01:54.3]} 16. cxb5 {[%clk 0:01:03.9]} 16... axb5 {[%clk 0:01:52]} 17.
Qd4 {[%clk 0:00:56.5]} 17... Rc7 {[%clk 0:01:38.3]} 18. Rd1 {[%clk 0:00:50.1]}
18... Rfc8 {[%clk 0:01:32.9]} 19. Qb6 {[%clk 0:00:43.9]} 19... Qa8 {[%clk
0:01:14.4]} 20. Rcd2 {[%clk 0:00:35.2]} 20... Rb7 {[%clk 0:00:55.3]} 21. Qd4
{[%clk 0:00:34.6]} 21... Qb8 {[%clk 0:00:51]} 22. Na2 {[%clk 0:00:31.5]} 22...
d5 {[%clk 0:00:43.4]} 23. Qxd5 {[%clk 0:00:30.5]} 23... exd5 {[%clk 0:00:41.6]}
0-1

[Event "Early-Titled-Tuesday-Blitz-August-29-2023"]
[Site "Chess.com"]
[Date "2023.08.29"]
[Round "6"]
[White "LileKoridze"]
[Black "Brave_spirit12"]
[Result "0-1"]
[WhiteElo "2354"]
[BlackElo "2839"]
[TimeControl "180+1"]
[EndTime "9:05:05 PDT"]
[Termination "Brave_spirit12 won by resignation"]

1. d4 {[%clk 0:03:00.9]} 1... Nf6 {[%clk 0:02:58.4]} 2. c4 {[%clk 0:03:01]} 2...
e6 {[%clk 0:02:56.6]} 3. Nf3 {[%clk 0:03:00.7]} 3... c5 {[%clk 0:02:54.5]} 4. d5
{[%clk 0:03:00.5]} 4... b5 {[%clk 0:02:55.1]} 5. cxb5 {[%clk 0:03:00.3]} 5...
exd5 {[%clk 0:02:49]} 6. Bg5 {[%clk 0:02:44.2]} 6... Bb7 {[%clk 0:02:47.4]} 7.
e3 {[%clk 0:02:43.7]} 7... d6 {[%clk 0:02:33.3]} 8. Nc3 {[%clk 0:02:35.3]} 8...
Nbd7 {[%clk 0:02:32.6]} 9. Bd3 {[%clk 0:02:10.1]} 9... Be7 {[%clk 0:02:26.3]}
10. O-O {[%clk 0:02:06.5]} 10... O-O {[%clk 0:02:24]} 11. Bf5 {[%clk 0:02:04.9]}
11... Nb6 {[%clk 0:02:09]} 12. a4 {[%clk 0:01:54.5]} 12... h6 {[%clk 0:01:59.3]}
13. Bf4 {[%clk 0:01:43.1]} 13... Nc4 {[%clk 0:01:54.7]} 14. Qc2 {[%clk
0:01:37.8]} 14... a5 {[%clk 0:01:40.6]} 15. Rad1 {[%clk 0:01:35.5]} 15... Re8
{[%clk 0:01:36]} 16. Bg3 {[%clk 0:00:37.7]} 16... Nb6 {[%clk 0:01:29.4]} 17. b3
{[%clk 0:00:32.5]} 17... Bc8 {[%clk 0:01:25.3]} 18. Bxc8 {[%clk 0:00:30.8]}
18... Rxc8 {[%clk 0:01:26.2]} 19. Bh4 {[%clk 0:00:31.1]} 19... g5 {[%clk
0:01:23.3]} 20. Bg3 {[%clk 0:00:29.8]} 20... Bf8 {[%clk 0:01:22.7]} 21. h4
{[%clk 0:00:25.3]} 21... g4 {[%clk 0:01:20.8]} 22. Ne1 {[%clk 0:00:25.8]} 22...
Bg7 {[%clk 0:01:19.4]} 23. Nd3 {[%clk 0:00:23.8]} 23... Nh5 {[%clk 0:01:18.2]}
24. Bf4 {[%clk 0:00:20.8]} 24... Qf6 {[%clk 0:01:17.2]} 25. g3 {[%clk 0:00:19]}
25... Qxc3 {[%clk 0:01:17]} 26. Qe2 {[%clk 0:00:17.9]} 26... c4 {[%clk
0:01:11.3]} 27. bxc4 {[%clk 0:00:14.9]} 27... dxc4 {[%clk 0:01:12.2]} 28. Nc1
{[%clk 0:00:15.3]} 28... Nxf4 {[%clk 0:01:12.2]} 29. gxf4 {[%clk 0:00:15.7]}
29... h5 {[%clk 0:01:12]} 30. Rxd6 {[%clk 0:00:15.3]} 30... Nxa4 {[%clk
0:01:11]} 31. b6 {[%clk 0:00:14.4]} 31... Qb4 {[%clk 0:01:11.1]} 32. Na2 {[%clk
0:00:13]} 32... Qxd6 {[%clk 0:01:11.1]} 0-1

[Event "Early-Titled-Tuesday-Blitz-August-29-2023"]
[Site "Chess.com"]
[Date "2023.08.29"]
[Round "6"]
[White "only_strong_moves"]
[Black "MatyChess1"]
[Result "0-1"]
[WhiteElo "2524"]
[BlackElo "2684"]
[TimeControl "180+1"]
[EndTime "9:05:06 PDT"]
[Termination "MatyChess1 won on time"]

1. e4 {[%clk 0:03:00.9]} 1... c6 {[%clk 0:02:58.9]} 2. d4 {[%clk 0:03:00.5]}
2... d5 {[%clk 0:02:59.8]} 3. e5 {[%clk 0:03:01]} 3... Bf5 {[%clk 0:02:59.6]} 4.
Nf3 {[%clk 0:03:00.8]} 4... e6 {[%clk 0:02:59.7]} 5. Be2 {[%clk 0:03:01.4]} 5...
Ne7 {[%clk 0:02:59.3]} 6. O-O {[%clk 0:03:01.2]} 6... Nd7 {[%clk 0:02:59.5]} 7.
Nbd2 {[%clk 0:03:01]} 7... c5 {[%clk 0:02:58.6]} 8. c4 {[%clk 0:03:00.1]} 8...
a6 {[%clk 0:02:52.3]} 9. cxd5 {[%clk 0:02:48]} 9... Nxd5 {[%clk 0:02:52.2]} 10.
Nc4 {[%clk 0:02:14.9]} 10... cxd4 {[%clk 0:02:47.5]} 11. Nxd4 {[%clk 0:02:11.2]}
11... Bg6 {[%clk 0:02:47.9]} 12. Bf3 {[%clk 0:01:59.8]} 12... Nc5 {[%clk
0:02:38.4]} 13. Ne3 {[%clk 0:00:58.8]} 13... Be7 {[%clk 0:01:45.8]} 14. Nxd5
{[%clk 0:00:39.5]} 14... exd5 {[%clk 0:01:46.1]} 15. b4 {[%clk 0:00:34.7]} 15...
Nd3 {[%clk 0:01:40.7]} 16. Qa4+ {[%clk 0:00:32.8]} 16... b5 {[%clk 0:01:34]} 17.
Qb3 {[%clk 0:00:32.8]} 17... Rc8 {[%clk 0:01:22.5]} 18. Bxd5 {[%clk 0:00:21.5]}
18... Nxb4 {[%clk 0:01:19.2]} 19. Bb7 {[%clk 0:00:07.8]} 19... Rc4 {[%clk
0:01:19.7]} 20. Be3 {[%clk 0:00:02.8]} 20... Qb8 {[%clk 0:00:58.9]} 21. Bf3
{[%clk 0:00:02]} 21... O-O {[%clk 0:00:59.6]} 22. a3 {[%clk 0:00:01.9]} 22...
Nd3 {[%clk 0:00:59.3]} 0-1

[Event "Early-Titled-Tuesday-Blitz-August-29-2023"]
[Site "Chess.com"]
[Date "2023.08.29"]
[Round "6"]
[White "Rsnr"]
[Black "hitaman"]
[Result "1-0"]
[WhiteElo "2910"]
[BlackElo "2719"]
[TimeControl "180+1"]
[EndTime "9:05:12 PDT"]
[Termination "Rsnr won by resignation"]

1. d4 {[%clk 0:03:00.2]} 1... Nf6 {[%clk 0:02:59.5]} 2. c4 {[%clk 0:03:00.5]}
2... e6 {[%clk 0:02:59.7]} 3. Nf3 {[%clk 0:03:00.2]} 3... d5 {[%clk 0:02:59.8]}
4. g3 {[%clk 0:03:00.5]} 4... Nc6 {[%clk 0:02:58.8]} 5. Bg2 {[%clk 0:02:59.6]}
5... Bd6 {[%clk 0:02:59.1]} 6. O-O {[%clk 0:02:58]} 6... O-O {[%clk 0:02:59.3]}
7. b3 {[%clk 0:02:51.9]} 7... dxc4 {[%clk 0:02:59.2]} 8. bxc4 {[%clk 0:02:52.5]}
8... e5 {[%clk 0:02:59.6]} 9. c5 {[%clk 0:02:43.7]} 9... Be7 {[%clk 0:02:58.5]}
10. dxe5 {[%clk 0:02:44.2]} 10... Qxd1 {[%clk 0:02:55.4]} 11. Rxd1 {[%clk
0:02:44.3]} 11... Ne4 {[%clk 0:02:54.9]} 12. Nbd2 {[%clk 0:02:28.3]} 12... Nc3
{[%clk 0:02:38]} 13. Re1 {[%clk 0:02:28.3]} 13... Bxc5 {[%clk 0:02:35.3]} 14.
Nb3 {[%clk 0:02:29]} 14... Bb6 {[%clk 0:02:29.9]} 15. Bb2 {[%clk 0:02:22.6]}
15... Ne4 {[%clk 0:02:28.6]} 16. e3 {[%clk 0:02:22.3]} 16... Be6 {[%clk
0:02:23.2]} 17. Nfd4 {[%clk 0:02:19.6]} 17... Nxd4 {[%clk 0:02:21.5]} 18. exd4
{[%clk 0:02:10.5]} 18... Bxb3 {[%clk 0:01:49]} 19. axb3 {[%clk 0:01:41.9]} 19...
Nd2 {[%clk 0:01:40.4]} 20. Ra3 {[%clk 0:01:41.6]} 20... Rad8 {[%clk 0:01:27.8]}
21. Rd1 {[%clk 0:01:41.3]} 21... Bxd4 {[%clk 0:00:47.2]} 22. Rxd2 {[%clk
0:01:41.2]} 22... Bxb2 {[%clk 0:00:47.5]} 23. Rxb2 {[%clk 0:01:41.2]} 23... Rd1+
{[%clk 0:00:48.4]} 24. Bf1 {[%clk 0:01:40.8]} 24... a6 {[%clk 0:00:49.3]} 25. f4
{[%clk 0:01:28.4]} 25... Rfd8 {[%clk 0:00:48.7]} 26. Kf2 {[%clk 0:01:27.5]}
26... R8d4 {[%clk 0:00:46.7]} 27. Be2 {[%clk 0:01:19.6]} 27... Rh1 {[%clk
0:00:45.7]} 28. Kg2 {[%clk 0:01:19.1]} 28... Re1 {[%clk 0:00:45.5]} 29. Ra4
{[%clk 0:01:17.4]} 29... Rd8 {[%clk 0:00:39.5]} 30. Bf3 {[%clk 0:01:09.9]} 30...
c6 {[%clk 0:00:39.5]} 31. Rb4 {[%clk 0:01:05.9]} 31... b5 {[%clk 0:00:23.3]} 32.
Bxc6 {[%clk 0:01:05.5]} 32... Rc8 {[%clk 0:00:19.7]} 1-0

[Event "Early-Titled-Tuesday-Blitz-August-29-2023"]
[Site "Chess.com"]
[Date "2023.08.29"]
[Round "6"]
[White "ljuks68"]
[Black "Caisachess"]
[Result "0-1"]
[WhiteElo "2442"]
[BlackElo "2336"]
[TimeControl "180+1"]
[EndTime "9:05:15 PDT"]
[Termination "Caisachess won on time"]

1. e4 {[%clk 0:02:54.1]} 1... e5 {[%clk 0:02:58.8]} 2. Nf3 {[%clk 0:02:53.9]}
2... Nc6 {[%clk 0:02:57.9]} 3. Bb5 {[%clk 0:02:54.5]} 3... f5 {[%clk 0:02:57.2]}
4. d3 {[%clk 0:02:54.2]} 4... fxe4 {[%clk 0:02:57]} 5. dxe4 {[%clk 0:02:54.6]}
5... Nf6 {[%clk 0:02:57.8]} 6. Nc3 {[%clk 0:02:54.5]} 6... Bb4 {[%clk
0:02:57.2]} 7. O-O {[%clk 0:02:53.1]} 7... Bxc3 {[%clk 0:02:57]} 8. bxc3 {[%clk
0:02:52.9]} 8... d6 {[%clk 0:02:57.8]} 9. Bc4 {[%clk 0:02:42.1]} 9... Bg4 {[%clk
0:02:53.5]} 10. Qd3 {[%clk 0:02:36.7]} 10... Qd7 {[%clk 0:02:49.7]} 11. a4
{[%clk 0:02:03.2]} 11... Na5 {[%clk 0:02:11.1]} 12. Ba2 {[%clk 0:01:59.5]} 12...
Rf8 {[%clk 0:01:56]} 13. h3 {[%clk 0:01:45.1]} 13... Bh5 {[%clk 0:01:37.5]} 14.
Ng5 {[%clk 0:01:40.9]} 14... Bg6 {[%clk 0:01:25.7]} 15. Ne6 {[%clk 0:01:24.7]}
15... Rf7 {[%clk 0:01:18.8]} 16. f3 {[%clk 0:00:54.9]} 16... Re7 {[%clk
0:01:18.3]} 17. Qb5 {[%clk 0:00:36.6]} 17... Nc6 {[%clk 0:01:03.6]} 18. Bd5
{[%clk 0:00:21.7]} 18... Rb8 {[%clk 0:00:38.9]} 0-1

[Event "Early-Titled-Tuesday-Blitz-August-29-2023"]
[Site "Chess.com"]
[Date "2023.08.29"]
[Round "6"]
[White "ProfessorChess101"]
[Black "KononenkoD"]
[Result "0-1"]
[WhiteElo "2420"]
[BlackElo "2646"]
[TimeControl "180+1"]
[EndTime "9:05:20 PDT"]
[Termination "KononenkoD won by checkmate"]

1. c4 {[%clk 0:03:00.9]} 1... c5 {[%clk 0:02:59.5]} 2. Nf3 {[%clk 0:03:00.5]}
2... Nc6 {[%clk 0:02:59.6]} 3. g3 {[%clk 0:03:00.3]} 3... g6 {[%clk 0:02:59.6]}
4. d4 {[%clk 0:02:59.2]} 4... cxd4 {[%clk 0:02:59.5]} 5. Nxd4 {[%clk 0:03:00.1]}
5... Bg7 {[%clk 0:02:59.9]} 6. Nc2 {[%clk 0:02:54.6]} 6... Nf6 {[%clk
0:02:58.4]} 7. Bg2 {[%clk 0:02:55.1]} 7... O-O {[%clk 0:02:58.6]} 8. O-O {[%clk
0:02:55.8]} 8... d6 {[%clk 0:02:58.5]} 9. Nc3 {[%clk 0:02:56.3]} 9... Be6 {[%clk
0:02:58]} 10. Ne3 {[%clk 0:02:56.3]} 10... Qd7 {[%clk 0:02:57.7]} 11. Ncd5
{[%clk 0:02:44.9]} 11... Bh3 {[%clk 0:02:51.8]} 12. Rb1 {[%clk 0:02:40.9]} 12...
Bxg2 {[%clk 0:02:50.9]} 13. Kxg2 {[%clk 0:02:41.8]} 13... Rac8 {[%clk
0:02:49.4]} 14. b3 {[%clk 0:02:41.3]} 14... Nxd5 {[%clk 0:02:46]} 15. Nxd5
{[%clk 0:02:39.1]} 15... e6 {[%clk 0:02:44.5]} 16. Ne3 {[%clk 0:02:37]} 16...
Rfd8 {[%clk 0:02:41.9]} 17. Bb2 {[%clk 0:02:26.9]} 17... d5 {[%clk 0:02:41.3]}
18. Bxg7 {[%clk 0:02:22.7]} 18... Kxg7 {[%clk 0:02:41.6]} 19. cxd5 {[%clk
0:02:18.6]} 19... exd5 {[%clk 0:02:42.5]} 20. Qd2 {[%clk 0:02:12.1]} 20... d4
{[%clk 0:02:39]} 21. Nc4 {[%clk 0:02:00.8]} 21... b5 {[%clk 0:02:28.9]} 22. Nb2
{[%clk 0:02:00.1]} 22... Qe7 {[%clk 0:02:22.6]} 23. Nd3 {[%clk 0:01:57.7]} 23...
Ne5 {[%clk 0:02:11.7]} 24. Rfc1 {[%clk 0:01:49.3]} 24... Ng4 {[%clk 0:02:01]}
25. Re1 {[%clk 0:01:28.2]} 25... Qe4+ {[%clk 0:01:48]} 26. Kg1 {[%clk
0:01:27.3]} 26... Qf5 {[%clk 0:01:44.6]} 27. Rbc1 {[%clk 0:01:14.6]} 27... h5
{[%clk 0:01:33.3]} 28. h4 {[%clk 0:01:07.9]} 28... Kh7 {[%clk 0:01:20.3]} 29.
Rxc8 {[%clk 0:00:59.2]} 29... Rxc8 {[%clk 0:01:20.3]} 30. Rc1 {[%clk 0:01:00.1]}
30... Re8 {[%clk 0:01:17.3]} 31. Rc7 {[%clk 0:00:54]} 31... b4 {[%clk
0:01:06.8]} 32. Qxb4 {[%clk 0:00:46]} 32... Rxe2 {[%clk 0:00:57.3]} 33. Qf8
{[%clk 0:00:38.5]} 33... Re1+ {[%clk 0:00:52.8]} 34. Kg2 {[%clk 0:00:35.2]}
34... Ne3+ {[%clk 0:00:52.4]} 35. Kh2 {[%clk 0:00:29]} 35... Qh3+ {[%clk
0:00:49.9]} 36. Kxh3 {[%clk 0:00:29.9]} 36... Rh1# {[%clk 0:00:50.3]} 0-1

[Event "Early-Titled-Tuesday-Blitz-August-29-2023"]
[Site "Chess.com"]
[Date "2023.08.29"]
[Round "6"]
[White "rezamahdavi2008"]
[Black "Anton_Demchenko"]
[Result "0-1"]
[WhiteElo "2752"]
[BlackElo "2932"]
[TimeControl "180+1"]
[EndTime "9:05:23 PDT"]
[Termination "Anton_Demchenko won by resignation"]

1. e4 {[%clk 0:03:00.9]} 1... e5 {[%clk 0:02:59.8]} 2. Nf3 {[%clk 0:03:00.1]}
2... Nc6 {[%clk 0:03:00.5]} 3. Nc3 {[%clk 0:03:00.8]} 3... Nf6 {[%clk
0:03:00.2]} 4. d4 {[%clk 0:03:01.2]} 4... exd4 {[%clk 0:03:01.1]} 5. Nxd4 {[%clk
0:03:01.7]} 5... Bb4 {[%clk 0:03:01.9]} 6. Nxc6 {[%clk 0:03:02.2]} 6... bxc6
{[%clk 0:03:02.8]} 7. Bd3 {[%clk 0:03:03]} 7... Qe7 {[%clk 0:03:01.3]} 8. Qe2
{[%clk 0:03:00.6]} 8... d6 {[%clk 0:02:59.5]} 9. Bg5 {[%clk 0:02:59.3]} 9... h6
{[%clk 0:02:57.4]} 10. Bh4 {[%clk 0:02:57.4]} 10... Bc5 {[%clk 0:02:41.4]} 11.
Rd1 {[%clk 0:02:48.8]} 11... Rb8 {[%clk 0:02:32]} 12. O-O {[%clk 0:02:44.1]}
12... g5 {[%clk 0:02:31.7]} 13. Bg3 {[%clk 0:02:43.4]} 13... Bg4 {[%clk
0:02:31.7]} 14. Qd2 {[%clk 0:02:41.8]} 14... Bxd1 {[%clk 0:02:32.4]} 15. Rxd1
{[%clk 0:02:42.7]} 15... Nh5 {[%clk 0:02:32.5]} 16. Na4 {[%clk 0:02:36.7]} 16...
Bd4 {[%clk 0:02:17.7]} 17. e5 {[%clk 0:02:08]} 17... Nxg3 {[%clk 0:02:08.3]} 18.
exd6 {[%clk 0:01:58]} 18... Qxd6 {[%clk 0:02:00.9]} 19. Re1+ {[%clk 0:01:56.7]}
19... Kf8 {[%clk 0:01:59.2]} 20. hxg3 {[%clk 0:01:56.8]} 20... Kg7 {[%clk
0:01:43.5]} 21. Kh2 {[%clk 0:01:47.6]} 21... Rhe8 {[%clk 0:01:38.1]} 22. Rxe8
{[%clk 0:01:36.5]} 22... Rxe8 {[%clk 0:01:37.8]} 23. Nc3 {[%clk 0:01:37.4]}
23... Qb4 {[%clk 0:01:28.1]} 24. Qd1 {[%clk 0:01:01.1]} 24... Bxc3 {[%clk
0:01:23.9]} 25. bxc3 {[%clk 0:01:02]} 25... Qxc3 {[%clk 0:01:24.6]} 26. Qf3
{[%clk 0:01:01.7]} 26... Qf6 {[%clk 0:01:24.2]} 27. Bf5 {[%clk 0:00:59.9]} 27...
Re5 {[%clk 0:01:22.5]} 28. g4 {[%clk 0:01:00.3]} 28... Qd6 {[%clk 0:01:22.5]}
29. g3 {[%clk 0:00:59.9]} 29... Qd4 {[%clk 0:01:14]} 30. Bd3 {[%clk 0:00:54.5]}
30... Qd5 {[%clk 0:01:08.4]} 31. Qd1 {[%clk 0:00:53.1]} 31... c5 {[%clk
0:00:58.4]} 32. Qf1 {[%clk 0:00:49]} 32... Qd4 {[%clk 0:00:54.6]} 33. Kh3 {[%clk
0:00:44.7]} 33... a5 {[%clk 0:00:49.9]} 34. a3 {[%clk 0:00:37.5]} 34... h5
{[%clk 0:00:49.9]} 35. gxh5 {[%clk 0:00:37.4]} 35... g4+ {[%clk 0:00:50.6]} 36.
Kg2 {[%clk 0:00:38.1]} 36... Qd5+ {[%clk 0:00:49.7]} 37. Kg1 {[%clk 0:00:37.7]}
37... Rxh5 {[%clk 0:00:49.8]} 38. Qg2 {[%clk 0:00:37.1]} 38... Qxg2+ {[%clk
0:00:49]} 39. Kxg2 {[%clk 0:00:38]} 39... Re5 {[%clk 0:00:47.1]} 0-1